Cogmind - Beta 11 X8 @@@ ROGUE MODE // 2021.11.29 @ 02:30:52 Player: Runia Result: Destroyed by 8R-AWN with 8R-AWN's Boregun Performance ------------- Evolutions (0) 0 Regions Visited (3) 600 Robots Destroyed (32) 160 Value Destroyed (564) 564 Prototype IDs (27) 540 Alien Tech Used (0) 0 Bonus (300) 300 TOTAL SCORE: 2164 Bonus ------- Aligned with FarCom 300 Cogmind --------- Core Integrity 0/250 Matter 214/300 Energy 100/100 System Corruption 0% Temperature Cool (0) Movement Core (3500) Ox69 Location -10/Exiles Parts ------- > --- POWER (1) -------- (None) > --- PROPULSION (2) --- (None) > --- UTILITY (2) ------ Humpback > --- WEAPON (2) ------- AWS/Gauss > --- INVENTORY (35) --- Assault Rifle Assault Rifle Light Assault Rifle Peak State ------------ > --- POWER ------------ Ion Engine > --- PROPULSION ------- Light Treads > --- UTILITY ---------- Large Storage Unit > --- WEAPON ----------- AWS/Gauss > --- INVENTORY -------- Ion Engine Humpback High-capacity Matter Pod Assault Rifle Assault Rifle Assault Rifle Assault Rifle Light Assault Rifle Light Assault Rifle Rocket Launcher [Rating: 20] Favorites ----------- Power Ion Engine Engine Ion Engine Propulsion Light Treads Treads Light Treads Leg Aluminum Leg Utility Large Storage Unit Storage Large Storage Unit Processor Targeting Computer Weapon Assault Rifle Energy Gun Small Laser Ballistic Gun Assault Rifle Launcher Rocket Launcher Impact Weapon Heavy Mace Build | -11 -10 -10 -10 ------- Run | Scr Mat Min Exi Slots Evolved . | . . . . Power . | . . . . Propulsion . | . . . . Utility . | . . . . Weapon . | . . . . Parts Attached 20 | 2 2 9 7 Power 1 | . . 1 . Engine 1 | . . 1 . Core . | . . . . Reactor . | . . . . Propulsion 4 | 2 . 2 . Treads 4 | 2 . 2 . Leg . | . . . . Wheel . | . . . . Hover . | . . . . Flight . | . . . . Utility 4 | . 2 1 1 Device . | . . . . Storage 2 | . 1 . 1 Processor 2 | . 1 1 . Hackware . | . . . . Protection . | . . . . Artifact . | . . . . Weapon 11 | . . 5 6 Energy Gun . | . . . . Energy Cannon . | . . . . Ballistic Gun 8 | . . 3 5 Ballistic Cannon . | . . . . Launcher 1 | . . . 1 Special Weapon . | . . . . Impact Weapon 2 | . . 2 . Slashing Weapon . | . . . . Piercing Weapon . | . . . . Special Melee Weapon . | . . . . Unidentified Prototypes . | . . . . Parts Lost 4 | . . 1 3 Power 2 | . . 1 1 Propulsion 2 | . . . 2 Utility . | . . . . Weapon . | . . . . Highest Loss Streak 2 | . . 1 2 Average Slot Usage (%) 95 | . 91 99 94 Engine 13 | . 14 13 13 Treads 27 | . 28 28 26 Storage 14 | . 14 14 14 Processor 10 | . 6 13 11 Energy Gun 4 | . 14 . . Ballistic Gun 16 | . 14 16 18 Impact Weapon 6 | . . 10 8 Naked Turns . | . . . . Heaviest Build 31 | 13 28 31 31 Greatest Support 40 | 40 40 40 40 Greatest Overweight (x) 1 | . . . 1 Average Overweight (x) . | . . . . Largest Inventory Capacity 35 | 8 15 15 35 Average Capacity 15 | 8 13 15 16 Most Carried 15 | 6 13 13 15 Average Carried 11 | 3 9 11 11 Final Capacity 35 | 8 15 15 35 Final Carried 13 | 2 13 12 3 Class Distribution -------------------- 95% | Mutant 4% | Hauler-Mutant Dominant Class ---------------- Mutant | -10/Materials Mutant | -10/Mines Mutant | -10/Exiles Resources | -11 -10 -10 -10 ----------- Run | Scr Mat Min Exi Matter Collected 545 | 200 166 159 20 Remotely . | . . . . Salvage Created 995 | . 630 322 43 Parts 69 | . 49 18 2 Haulers Intercepted 2 | . 2 . . Recyclers Shooed 1 | . 1 . . Parts Field Recycled . | . . . . Retrieved Matter . | . . . . Parts Self-Destructed . | . . . . Prevented . | . . . . Kills | -11 -10 -10 -10 ------- Run | Scr Mat Min Exi Combat Hostiles Destroyed 24 | . 12 8 4 Melee 1 | . . 1 . Guns 19 | . 12 6 1 AOE 3 | . . . 3 Classes Destroyed 9 | . 7 . 2 Worker 4 | . 3 1 . Tunneler 3 | . 1 2 . Hauler 2 | . 2 . . Recycler 1 | . 1 . . Watcher 1 | . 1 . . Swarmer 9 | . 6 3 . Grunt 11 | . 6 5 . Zionite 1 | . . . 1 Assembled 4 | . . . 4 Best Kill Streak 7 | . 7 3 4 Combat Bots Only 7 | . 7 3 4 Max Kills in Single Turn 2 | . 2 1 2 Gunslinging . | . . . . Exploded 2 | . . . 2 Melee 1 | . . 1 . Uniques/NPCs Destroyed . | . . . . Combat | -11 -10 -10 -10 -------- Run | Scr Mat Min Exi Damage Taken 1336 | . 263 598 475 Core 260 | . 50 129 81 Absorbed by Shields . | . . . . Core Remaining (%) 100 | 100 . . . Volleys Fired 70 | . 42 20 8 Largest 2 | . 2 2 2 Hottest 60 | . 60 60 40 Shots Fired 163 | . 84 40 39 Gun 160 | . 84 40 36 Cannon . | . . . . Launcher 3 | . . . 3 Special . | . . . . Kinetic 112 | . 42 34 36 Thermal 48 | . 42 6 . Explosive 3 | . . . 3 Electromagnetic . | . . . . Robot Hit Streak 20 | . 10 13 20 Robot Miss Streak 3 | . 3 3 1 Penetration Max . | . . . . Secondary Targets 3 | . 2 1 . Max Gunslinging Chain 1 | . 1 1 . Autonomous 28 | . . . 28 Shots Hit Robots 123 | . 54 38 31 Core Hits 56 | . 29 14 13 Critical Kills 1 | . 1 . . Critical Parts Destroyed . | . . . . Critical Strikes 1 | . 1 . . Destroy 1 | . 1 . . Melee Attacks 10 | . . 10 . Impact 10 | . . 10 . Slashing . | . . . . Piercing . | . . . . Sneak Attacks 2 | . . 2 . Combat Hostiles . | . . . . Follow-up Attacks 1 | . . 1 . Damage Inflicted 2199 | . 697 647 855 Guns 1776 | . 697 321 758 Cannons . | . . . . Explosions 97 | . . . 97 Melee 324 | . . 324 . Ramming 2 | . . 2 . Kinetic 1403 | . 365 280 758 Thermal 373 | . 332 41 . Explosive 97 | . . . 97 Electromagnetic . | . . . . Impact 324 | . . 324 . Slashing . | . . . . Piercing . | . . . . Highest Corruption . | . . . . Average Corruption . | . . . . Corruption Purged . | . . . . Overload Shots . | . . . . Overflow Damage 127 | . . 127 . Projectiles . | . . . . Explosions . | . . . . Melee 127 | . . 127 . Knockbacks 2 | . . 2 . Impact 2 | . . 2 . Kinetic . | . . . . Secondary . | . . . . Self-Inflicted Damage 1 | . . . 1 Shots 1 | . . . 1 Rammed 1 | . . 1 . Targets Rammed 1 | . . 1 . Kicked . | . . . . Crushed . | . . . . Highest Temperature 48 | . 42 48 . Average Temperature 20 | . 24 15 . Received Heat Transfer 408 | . 84 324 . Siege Activations . | . . . . Robots Corrupted . | . . . . Combat Hostiles . | . . . . Parts Fried 4 | . . 4 . Impact Corruptions 7 | . . 7 . Robots Melted . | . . . . Combat Hostiles . | . . . . Parts Melted . | . . . . Heat Transferred 825 | . 725 100 . Parts Sabotaged . | . . . . Parts Stolen . | . . . . Parts Stripped . | . . . . Power Chain Reactions . | . . . . Missiles Intercepted . | . . . . Alert | -11 -10 -10 -10 ------- Run | Scr Mat Min Exi Peak Influence 285 | . 285 223 . Initial 58 | . . 58 . Average 126 | . 174 89 . Maximum Alert Level 1 | . 1 1 . Low Security (%) 79 | 100 62 92 . Level 1 20 | . 37 7 . Level 2 . | . . . . Level 3 . | . . . . Level 4 . | . . . . Level 5 . | . . . . High Security . | . . . . Max Security . | . . . . Squads Dispatched 4 | . 3 1 . Investigation 3 | . 2 1 . Extermination . | . . . . Reinforcement 1 | . 1 . . Assault . | . . . . Garrison . | . . . . Intercept . | . . . . Construction Impeded . | . . . . Haulers Reinforced . | . . . . Active Scanning Responses . | . . . . Cargo Convoy Interrupts . | . . . . Stealth | -11 -10 -10 -10 --------- Run | Scr Mat Min Exi Distress Signals . | . . . . Communications Jammed . | . . . . Distress Signals . | . . . . Times Spotted 40 | . 24 7 9 Peak Tracking Total 12 | . 6 4 12 Tactical Retreats 1 | . . . 1 Traps | -11 -10 -10 -10 ------- Run | Scr Mat Min Exi Traps Triggered . | . . . . Indirectly . | . . . . Trap Hack Attempts . | . . . . Triggered . | . . . . Disarmed 3 | . 3 . . Reprogrammed . | . . . . Reused . | . . . . Traps Extracted . | . . . . Installed . | . . . . Triggered . | . . . . Exploded 3 | . . . 3 Machines | -11 -10 -10 -10 ---------- Run | Scr Mat Min Exi Machines Disabled 3 | . . . 3 Max in Single Turn 1 | . . . 1 Machines Sabotaged . | . . . . Garrisons Compromised . | . . . . Overloaded Fab Kills . | . . . . Hacking | -11 -10 -10 -10 --------- Run | Scr Mat Min Exi Machines Accessed 10 | . 7 1 2 Terminals 5 | . 5 . . Fabricators . | . . . . Repair Stations . | . . . . Recycling Units 2 | . 2 . . Scanalyzers . | . . . . Garrison Access . | . . . . Total Hacks 22 | . 19 1 2 Successful 11 | . 8 1 2 Failed 11 | . 11 . . Catastrophic 2 | . 2 . . Database Lockouts . | . . . . Manual 6 | . 5 . 1 Terminals 17 | . 17 . . Fabricators . | . . . . Repair Stations . | . . . . Recycling Units 2 | . 2 . . Scanalyzers . | . . . . Garrison Access . | . . . . Terminal Hacks 9 | . 6 1 2 Record 1 | . . . 1 Robot Analysis 1 | . 1 . . Prototype ID Bank 2 | . 2 . . Open Door 1 | . . 1 . Locate Traps 2 | . 2 . . Disarm Traps 1 | . 1 . . EX-Prototype ID Bank 1 | . . . 1 Fabricator Hacks . | . . . . Repair Station Hacks . | . . . . Recycling Unit Hacks . | . . . . Scanalyzer . | . . . . Garrison Access Hacks . | . . . . Unauthorized Hacks 2 | . 2 . . Terminals . | . . . . Fabricators . | . . . . Repair Stations . | . . . . Recycling Units 2 | . 2 . . Tunnel 2 | . 2 . . Scanalyzers . | . . . . Garrison Access . | . . . . Data Cores Recovered . | . . . . Used . | . . . . Hacking Detections 3 | . 3 . . Full Trace Events . | . . . . Feedback Events . | . . . . Feedback Blocked . | . . . . Robot Schematics Acquired . | . . . . Robots Built . | . . . . Authchips . | . . . . Time . | . . . . Total Robot Build Rating . | . . . . Part Schematics Acquired . | . . . . Parts Built . | . . . . Authchips . | . . . . Time . | . . . . Total Part Build Rating . | . . . . Parts Repaired . | . . . . Time . | . . . . Parts Recycled . | . . . . Recycled Matter . | . . . . Retrieved Matter . | . . . . Retrieved Components . | . . . . Parts Scanalyzed . | . . . . Part Schematics Acquired . | . . . . Parts Damaged . | . . . . Bothacking | -11 -10 -10 -10 ------------ Run | Scr Mat Min Exi Used RIF Installer . | . . . . Robots Hacked . | . . . . Non-combat . | . . . . Combat . | . . . . Robot Hacks Applied . | . . . . Relay Couplers Released . | . . . . Fabnet Peak Effective % . | . . . . Robots Rewired . | . . . . Allies Hacked . | . . . . Hacks Repelled . | . . . . Allies | -11 -10 -10 -10 -------- Run | Scr Mat Min Exi Total Allies . | . . . . Largest Group . | . . . . Highest-Rated Group . | . . . . Highest-Rated Ally . | . . . . Total Orders . | . . . . Ally Attacks . | . . . . Total Damage . | . . . . Kills . | . . . . Allies Corrupted . | . . . . Allies Melted . | . . . . Intel | -11 -10 -10 -10 ------- Run | Scr Mat Min Exi Robot Analysis Total 1 | . 1 . . Derelict Logs Recovered 3 | . . 3 . Drone Launches . | . . . . Drone Recoveries . | . . . . Exploration | -11 -10 -10 -10 ------------- Run | Scr Mat Min Exi Turns Passed 2668 | 8 818 1044 798 Spaces Moved 1436 | 3 411 588 434 Core . | . . . . Treads 1436 | 3 411 588 434 Legs . | . . . . Wheels . | . . . . Hover . | . . . . Flight . | . . . . Fastest Speed 160 | 160 160 160 160 Average Speed 160 | 160 160 160 160 Slowest Speed 240 | 160 160 160 240 Overloaded Moves . | . . . . Propulsion Burnouts . | . . . . Robots Hopped . | . . . . Cave-ins Triggered . | . . . . Exploration Rate (%) 60 | 1 81 98 61 Regions Visited 3 Branch Regions 2 Pre-discovered Areas 5 | . 2 2 1 Known Exits Taken . | . . . . Unknown Exits Taken 3 | 1 1 1 . Scrap Searched 3 | . . 3 . Spaces Dug 7 | . . . 7 Terrain Destroyed 36 | . . . 36 Melee . | . . . . Projectile 16 | . . . 16 AOE 20 | . . . 20 Terrain Rammed . | . . . . Walls Destroyed . | . . . . Machines Disabled . | . . . . Actions | -11 -10 -10 -10 --------- Run | Scr Mat Min Exi Total 1660 | 8 487 635 530 Wait 85 | . 21 2 62 Move 1433 | 2 410 587 434 Hop . | . . . . Pick Up 20 | . 11 3 6 Fast Attach 3 | . 2 1 . Attach 8 | 2 . 1 5 Detach 2 | . . . 2 Swap 9 | . . 7 2 Drop 21 | 4 1 5 11 Fire 70 | . 42 20 8 Melee 8 | . . 8 . Ram . | . . . . Kick . | . . . . Crush 1 | . . 1 . Escape Stasis . | . . . . Rewire . | . . . . Trap . | . . . . Miscellaneous . | . . . . Route ------- -11/Scrapyard -10/Materials (discovered 4 exits: [*Mat x2] / *Min x2) -10/Mines (discovered 3 exits: [*Mat x2] / *Exi) -10/Exiles History --------- Turn | Location | Event 6 | -11/Scrapyard | Discovered new exit (range 0) 9 | -11/Scrapyard | Entered Materials 131 | -10/Materials | Destroyed 7 combat bots 260 | -10/Materials | Discovered new exit (range 14) 297 | -10/Materials | Discovered new exit (range 13) 316 | -10/Materials | Build established: Mutant 568 | -10/Materials | Discovered new exit (range 11) 715 | -10/Materials | Discovered new exit (range 6) 827 | -10/Materials | Entered Mines 879 | -10/Mines | Core integrity fell below 50% 1014 | -10/Mines | Deemed a non-threat by the Exiles lab entrance 1014 | -10/Mines | Discovered new exit (range 5) 1128 | -10/Mines | Learned Materials terminal intel 1136 | -10/Mines | Learned location of Storage (-7) 1150 | -10/Mines | Received a Rocket Launcher from a helpful Derelict 1156 | -10/Mines | Discovered new exit (range 14) 1196 | -10/Mines | Learned Materials emergency access door positions 1332 | -10/Mines | Met a Derelict shopkeep closing up shop 1477 | -10/Mines | Discovered new exit (range 9) 1871 | -10/Mines | Entered Exiles 1910 | -10/Exiles | Met 8R-AWN 1937 | -10/Exiles | Met EX-HEX 2001 | -10/Exiles | Met EX-DEC 2007 | -10/Exiles | Learned location of Zion (-7) 2033 | -10/Exiles | Met EX-BIN 2057 | -10/Exiles | Aligned with FarCom system 2059 | -10/Exiles | Given EX-Vault access code 2095 | -10/Exiles | Opened EX-Vault 2105 | -10/Exiles | Found AWS/Gauss 2143 | -10/Exiles | Warned to stay clear of 0b10 Research branches 2552 | -10/Exiles | Attacked by the Exiles 2647 | -10/Exiles | Core integrity fell below 20% 2669 | -10/Exiles | Destroyed by 8R-AWN with 8R-AWN's Boregun Last Messages --------------- 02658_ HV Slug penetrates Earth. 02658_ Slug penetrates 8R-AWN. 02660_ Penetrated by HV Slug. 02660_ HV Slug penetrates Earth. 02660_ Penetrated by HV Slug. 02660_ HV Slug penetrates Earth. 02660_ Slug penetrates Machine. 02660_ Machine disabled. 02661_ Slug penetrates 8R-AWN. 02662_ Penetrated by HV Slug. 02662_ HV Slug penetrates Earth. 02662_ Penetrated by HV Slug. 02662_ Critical hit (Destroy). 02662_ Lgt. Treads destroyed. 02664_ Penetrated by HV Slug. 02665_ Slug penetrates 8R-AWN. 02667_ Penetrated by HV Slug. 02667_ Slug penetrates 8R-AWN. 02668_ Destroyed Adv. Weapon Cycler. 02669_ Penetrated by HV Slug. Map ----- +----------------------------------------------------+ | ?????????????????????????????????????????????????? | | ?????????????????????????????????????????????????? | | ?????????????????????????????????????????????????? | | ?????????????????????????????????????????????????? | | ?????????????????????????????????????????????????? | | ?????????????????????????????????????????????????? | | ?????????????????????????????????????????????????? | | ?????????????????????????????????????????????????? | | ?????????????????????????????????????????????????? | | ?????????????????????????????????????????????????? | | ????????????????????????? ???????????????????????? | | ?????????????? ?????????? ???#######?????????????? | | ?????????????? ######??? ???#! ! "#?????????????? | | ????????????? #""#?? ???# "#?????????????? | | ?????????????? ?? ???# "#?????????????? | | ?????????????" #? ??## ""#????????????## | | ?????????????? #;###" ""#???????????? | | ??????????????# ##" ""#????????????" | | ???????????????# #"" ###???????????"" | | ??????????????????# ###??????????#"" | | ????????????????????## #??????????#"" | | ?????????????????????### # ##???????? | | ???????????????#######;" % #????????" | | ???????????????# !!"""" [ #?????????# | | ???????????????#! !]g ## #####???### | | ???????????????# [@ #? % " #####X# | | ???????????????#! *[##??# % | | ???????????????# !"""" "#;#???#" | | ???????????????######;### #???## % | | ???????????????????# ???# #??????# | | ???????????????????#????# #???????## % | | ????????????????????????# #?????????? | | ????????????????????????# #???????????## | | ????????????????????????# #????????????##" | | ????????????????????????? ??????????????#""" | | ????????????????????????? ??????????????#" | | ????????????????????????? ?????????????#"" | | ????????????????????????? ?????????????#""" | | ????????????????????????? ?????????????""" [ | | ????????????????????????? ?????????????""" %= | | ????????????????????????? ??????????????" | | ???????????????????????????????????????""" | | ???????????????????????????????????????"" | | ????????????????????????????????????????"" | | ????????????????????????????????????????"""" | | ????????????????????????????????????????? | | ??????????????????????????????????????????? | | ????????????????????????????????????????????" | | ?????????????????????????????????????????????????? | | ?????????????????????????????????????????????????? | +----------------------------------------------------+ Best States ------------- Heat Dissipation 25 Energy Generation 10 Energy Capacity 250 Matter Stores 300 Matter Capacity 300 Sight Range 16 Terrain Scan Density 10 Evasion (%) 40 Targeting Accuracy 5 Recoil Reduction 2 Item Schematics ----------------- None Robot Schematics ------------------ None Fabricated ------------ Nothing Alien Tech Used ----------------- None Achievements -------------- None Challenges ------------ None Game ------ Seed HeavySpacefoldGreatsword Manual? 0 Play Time 00:14:15 Cumulative 522.5 hours Start 2021.11.29 @ 02:19:39 End 2021.11.29 @ 02:30:52 Sessions 1 Manual Loads 0 Difficulty Rogue Special Mode None Game No. 511 Rogue 511 Adventurer 0 Explorer 0 Win Type - Total 14 Types 9/1/3/1/0/0/0/0/0 Lore% 86 Gallery% 94 Achievement% 74 Wizard Run 0 Options --------- ASCII 0 Keyboard 0 Movement Mouse Keybinds 1 Fullscreen 2 Font 24/Smallcaps Map View 76x50 Tactical HUD 1 Map Filters NONE Filters NONE Steam 1 RUN: 78a3784d-5c73-4eef-9127-02dafc973102